bitfinex/quotes_ETHUSD_20251217
["timestamp","ask_amount","ask_price","bid_price","bid_amount"]
[1765946427880,0.657,2935.9,2935.5,3.94653115]
[1765946428395,0.4584,2935.9,2935.5,8.7341897]
[1765946428573,0.4584,2935.9,2935.5,12.14076438]
[1765946428777,0.4584,2935.9,2935.6,0.405504]
[1765946428973,0.001,2936.3,2936.1,0.4991]
[1765946429178,0.001,2936.3,2935.9,0.54]
[1765946429179,0.0637,2936.2,2935.9,0.54]
[1765946429908,0.001,2936.2,2936.1,0.6843]
[1765946430090,0.001,2936.2,2936.1,5.96775855]
[1765946430285,0.001,2936.2,2936.1,9.37363709]
[1765946430914,0.001,2936.2,2936.1,10.57559805]
[1765946432212,0.001,2936.2,2936.1,3.81138254]
[1765946432378,0.0637,2936.2,2936.1,4.35138254]
[1765946432707,0.0009,2936.0,2935.4,0.97041093]
[1765946432895,0.0618,2935.9,2935.8,3.40611058]
[1765946433102,0.0618,2935.9,2935.8,4.35161458]
[1765946433310,0.001,2936.2,2936.1,0.4991]
[1765946433896,0.001,2936.2,2936.1,6.40732133]
[1765946434090,0.001,2936.2,2936.1,8.17499878]
[1765946434285,0.001,2936.2,2936.1,11.58087732]
[1765946436781,0.001,2936.2,2936.1,16.8329161]
[1765946436985,0.001,2936.8,2936.7,0.4948]
[1765946437182,0.001,2936.8,2936.7,6.72796255]
[1765946437482,0.0796,2936.8,2936.7,6.45239683]
[1765946437716,0.0796,2936.8,2936.7,5.73316255]
[1765946438098,0.001,2936.8,2936.7,5.73316255]
[1765946438307,0.001,2936.8,2936.7,6.22796255]
[1765946438484,0.001,2936.8,2936.7,6.72796255]
[1765946438810,0.001,2936.8,2936.7,10.56226255]
[1765946439011,0.001,2936.8,2936.7,10.57249325]
[1765946439210,0.001,2936.8,2936.7,11.03687348]
[1765946440605,0.4246,2937.5,2937.1,0.405504]
[1765946440912,0.0786,2937.2,2936.7,5.75203878]
[1765946441103,0.0786,2937.2,2936.9,3.40494041]
[1765946441303,0.0786,2937.2,2936.8,4.35049958]
[1765946441488,0.0786,2937.2,2936.8,0.945504]
[1765946442218,0.38287628,2937.4,2937.1,0.4948]
[1765946442417,0.4797,2937.2,2937.1,0.54]
[1765946443433,0.4307,2937.2,2937.1,0.54]
[1765946443617,0.4307,2937.2,2937.1,3.94471894]
[1765946444195,0.001,2937.2,2937.1,3.94471894]
[1765946447020,0.001,2937.2,2937.1,0.54]
[1765946447725,0.0301,2937.2,2937.1,0.54]
[1765946448927,0.0301,2937.2,2937.1,3.94471894]
[1765946449127,0.001,2937.2,2937.1,4.43951894]
[1765946449630,0.001,2937.2,2937.1,1.0348]
[1765946449830,0.0301,2937.2,2937.1,0.54]
[1765946450897,0.001,2937.2,2937.1,0.54]
[1765946451227,0.0291,2937.1,2937.0,3.40479527]
[1765946451431,0.0291,2937.1,2937.0,3.94479527]
[1765946451827,0.0291,2937.1,2937.0,0.54]
[1765946452132,0.4953,2937.1,2937.0,0.54]
[1765946453035,0.0291,2937.1,2937.0,3.94483486]
[1765946453716,0.001,2937.2,2937.0,3.94483486]
[1765946454114,0.0334,2937.1,2937.0,3.94483486]
[1765946454318,0.0334,2937.1,2937.0,0.54]
[1765946454920,0.001,2937.2,2937.0,0.54]
[1765946455125,0.0291,2936.5,2936.4,3.40546297]
[1765946455305,0.0291,2936.5,2936.4,3.94546297]
[1765946455507,0.0291,2936.5,2936.4,0.945504]
[1765946455707,0.0291,2936.5,2936.0,0.0122307]
[1765946455708,0.0498,2936.3,2936.2,3.40569881]
[1765946455920,0.0498,2936.3,2936.2,3.94569881]
[1765946456210,0.0498,2936.3,2936.2,4.35120281]
[1765946456417,0.4706,2936.6,2936.2,7.75696536]
[1765946456816,0.6014,2936.7,2936.2,7.75696536]
[1765946457202,0.6014,2936.7,2936.2,8.25696536]
[1765946457405,0.1308,2936.7,2936.2,8.25696536]
[1765946460315,0.1308,2936.7,2936.3,0.5]
[1765946460525,0.1308,2936.7,2936.2,7.75696536]
[1765946460526,0.4706,2936.6,2936.2,7.75696536]
[1765946460838,0.0786,2936.3,2936.2,4.35120281]
[1765946461221,0.4706,2936.6,2936.2,7.75696536]
[1765946461417,0.1308,2936.7,2936.3,0.5]
[1765946461938,0.1308,2936.7,2936.3,3.40555411]
[1765946462122,0.6014,2936.7,2936.3,3.40555411]
[1765946462323,0.4706,2936.6,2936.2,4.35125614]
[1765946462718,0.4706,2936.6,2936.2,4.35122098]
[1765946462942,0.0786,2936.2,2936.1,3.40782624]
[1765946463140,3.4056835,2937.2,2936.4,0.4948]
[1765946463141,0.001,2937.2,2936.4,0.4948]
[1765946463339,3.40563725,2937.2,2936.5,0.57405414]
[1765946463543,7.2808745,2937.2,2936.5,0.54]
[1765946463747,0.0786,2936.6,2936.5,0.54]
[1765946464042,0.0786,2936.6,2936.5,3.9454146]
[1765946464242,0.0786,2936.6,2936.5,0.54]
[1765946465743,0.1308,2936.8,2936.5,3.9454146]
[1765946465915,3.40475527,2937.1,2936.5,4.4285146]
[1765946466241,0.34057553,2937.0,2936.5,4.4285146]
[1765946466449,0.81537553,2937.0,2936.5,3.9474146]
[1765946466739,0.6056,2936.9,2936.5,0.542]
[1765946466936,0.0745,2936.6,2936.5,3.9474146]
[1765946467847,0.0745,2936.6,2936.5,0.542]
[1765946468044,0.0745,2936.6,2936.5,3.9474146]
[1765946468416,0.6056,2936.9,2936.5,3.9474146]
[1765946468637,1.04069002,2936.9,2936.5,3.9474146]
[1765946469449,0.6056,2936.9,2936.5,3.9474146]
[1765946469829,0.0745,2936.6,2936.5,0.542]
[1765946473050,0.0745,2936.6,2936.5,0.002]
[1765946473250,0.0745,2936.6,2936.5,0.542]
[1765946473954,0.0745,2936.6,2936.5,3.9474146]
[1765946474730,0.1308,2936.9,2936.5,4.4276146]
[1765946475051,3.40565178,2937.2,2936.5,4.9189453]
[1765946475218,0.34056518,2937.1,2936.5,4.9189453]
[1765946475422,0.0745,2936.6,2936.5,3.9474146]
[1765946475956,0.0745,2936.6,2936.5,0.542]
[1765946476144,0.0745,2936.6,2936.5,3.9474146]
[1765946476344,0.1308,2936.8,2936.5,3.9474146]
[1765946476552,0.0784,2936.6,2936.5,3.9474146]
[1765946480131,0.81536518,2937.1,2936.5,7.8330292]
[1765946480462,0.42210189,2937.0,2936.5,8.3141292]
[1765946480845,0.42210189,2937.0,2936.5,4.9087146]
[1765946481041,0.42210189,2937.0,2936.5,8.3141292]
[1765946481242,0.4748,2937.1,2936.5,8.3141292]
[1765946481757,0.001,2937.2,2936.6,0.4811]
[1765946482368,0.4758,2937.2,2936.7,3.40518268]
[1765946482565,0.0745,2936.7,2936.6,3.40525766]
[1765946482749,0.5453,2936.7,2936.6,3.40525766]
[1765946483676,0.001,2937.2,2936.6,3.40525766]
[1765946483855,0.68100911,2937.1,2936.6,3.40525766]
[1765946484063,0.001,2937.2,2936.7,0.4811]
[1765946484376,0.001,2937.2,2936.8,3.40506673]
[1765946484860,0.4758,2937.2,2936.8,3.40506673]
[1765946485178,0.001,2937.2,2937.1,0.4802]
[1765946485337,0.001,2937.2,2937.1,0.9613]
[1765946485739,0.001,2937.2,2937.1,0.9715307]
[1765946485947,0.001,2937.2,2937.1,1.60155376]
[1765946486366,0.001,2937.2,2937.1,5.0062727]
[1765946486946,0.001,2937.2,2937.1,3.40471894]
[1765946487153,0.0755,2937.2,2937.1,3.94471894]
[1765946487478,0.0755,2937.2,2937.1,3.40471894]
[1765946487781,0.0755,2937.2,2937.1,3.94471894]
[1765946488176,0.001,2937.2,2937.1,3.94471894]
[1765946488551,0.001,2937.2,2937.1,4.42491894]
[1765946488750,0.001,2937.2,2937.1,5.70024799]
[1765946489881,0.001,2937.2,2937.1,6.10575199]
[1765946490250,0.001,2937.2,2937.1,6.57013222]
[1765946493896,0.0755,2937.2,2936.7,0.4811]
[1765946494185,0.0755,2937.2,2936.5,0.002]
[1765946494186,0.5463,2937.2,2936.5,3.40734526]
[1765946494385,0.0047,2936.7,2936.5,3.40734526]
[1765946494587,0.0047,2936.7,2936.6,0.54]
[1765946494888,0.5446,2936.6,2936.5,0.002]
[1765946495254,0.0694,2936.6,2936.5,0.002]
[1765946495460,0.5446,2936.6,2936.5,0.002]
[1765946496483,3.94989864,2936.6,2936.5,0.002]
[1765946496684,1.28009935,2936.6,2936.5,0.002]
[1765946496860,0.5446,2936.6,2936.5,0.002]
[1765946499375,0.0694,2936.6,2936.5,0.002]
[1765946500692,0.001,2936.7,2936.5,0.002]
[1765946500991,0.0967,2936.6,2936.5,0.002]
[1765946501885,0.5454,2936.6,2936.5,0.002]
[1765946502082,0.94056555,2936.6,2936.5,0.002]
[1765946503195,0.94056555,2936.6,2936.1,0.002]
[1765946503196,0.4568,2936.2,2936.1,0.002]
[1765946504094,3.86256255,2936.2,2936.1,0.002]
[1765946504294,0.39516555,2936.6,2936.1,0.002]
[1765946504492,0.001,2936.7,2936.1,0.1821]
[1765946504696,3.40624877,2936.7,2936.1,0.002]
[1765946504869,0.4523,2936.6,2936.1,0.002]
[1765946505069,0.0967,2936.2,2936.1,0.002]
[1765946505564,3.40624877,2936.7,2936.1,0.002]
[1765946506106,0.0967,2936.6,2936.5,0.002]
[1765946506406,0.5464,2936.6,2936.5,0.002]
[1765946506574,1.28217211,2936.6,2936.5,0.002]
[1765946508805,4.68747075,2936.6,2936.5,0.002]
[1765946509188,1.28217211,2936.6,2936.5,0.002]
[1765946510680,0.5464,2936.6,2936.5,0.002]
[1765946511596,3.95169864,2936.6,2936.5,0.002]
[1765946515586,4.41607887,2936.6,2936.5,0.002]
[1765946517402,9.19777104,2936.6,2936.5,0.002]
[1765946517709,0.4568,2936.2,2936.1,0.002]
[1765946518016,5.23849217,2936.2,2936.1,0.002]
[1765946518309,5.81634139,2936.2,2936.1,0.002]
[1765946519680,1.03464922,2936.2,2936.1,0.002]
[1765946520605,0.4568,2936.2,2936.1,0.002]
[1765946520811,0.0045,2936.2,2936.1,0.002]
[1765946521582,0.4523,2936.5,2936.1,0.002]
[1765946522210,3.40632121,2936.6,2936.1,0.002]
[1765946522507,3.85862121,2936.6,2936.1,0.002]
[1765946522804,0.4533,2936.6,2936.1,0.47]
[1765946523393,0.4533,2936.6,2936.1,0.002]
[1765946523891,0.4523,2936.5,2936.1,0.002]
[1765946524316,0.0967,2936.2,2936.1,0.002]
[1765946524694,0.4523,2936.5,2936.1,0.4898]
[1765946525704,0.4898,2936.6,2936.1,3.89558608]
[1765946525904,0.001,2936.6,2936.1,5.15973519]
[1765946526622,0.001,2936.6,2936.2,0.4956]
[1765946526824,0.001,2936.6,2936.5,0.4878]
[1765946527489,0.0616,2936.6,2936.3,0.54]
[1765946527686,0.0616,2936.6,2936.3,1.0356]
[1765946527914,0.001,2936.6,2936.5,0.4878]
[1765946528691,0.001,2936.6,2936.5,0.9834]
[1765946529134,0.001,2936.6,2936.5,7.07775197]
[1765946529432,0.001,2936.6,2936.5,2.7015638]
[1765946529731,0.001,2936.6,2936.5,2.73561794]
[1765946529958,0.001,2936.6,2936.5,6.57135863]
[1765946530393,0.001,2936.6,2936.5,11.8930508]
[1765946530836,0.001,2936.6,2936.5,7.11135863]
[1765946530989,0.001,2936.6,2936.5,6.57135863]
[1765946531190,0.001,2936.6,2936.5,7.11135863]
[1765946531391,0.001,2936.6,2936.5,7.12158933]
[1765946535348,0.001,2936.6,2936.5,6.62798933]
[1765946535548,0.001,2936.6,2936.5,7.12358933]
[1765946535896,0.001,2936.6,2936.5,6.62798933]
[1765946536095,0.001,2936.6,2936.5,6.08798933]
[1765946536332,0.0616,2936.6,2936.5,0.002]
[1765946540024,0.5461,2936.6,2936.5,0.002]
[1765946540213,3.95139864,2936.6,2936.5,0.002]
[1765946540404,0.94133986,2936.6,2936.5,0.002]
[1765946541435,0.45683986,2936.6,2936.5,0.002]
[1765946541635,0.94133986,2936.6,2936.5,0.002]
[1765946545535,4.3466385,2936.6,2936.5,0.002]
[1765946545729,3.95139864,2936.6,2936.5,0.002]
[1765946555048,3.46689864,2936.6,2936.5,0.002]
[1765946555961,3.92339864,2936.6,2936.5,0.002]
[1765946559726,0.0616,2936.6,2936.5,0.002]
[1765946560058,4.6140909,2936.6,2936.5,0.002]
[1765946560952,1.20879226,2936.6,2936.5,0.002]
[1765946561162,0.74889226,2936.6,2936.5,0.002]
[1765946562870,4.6140909,2936.6,2936.5,0.002]
[1765946568534,1.20879226,2936.6,2936.5,0.002]
[1765946568743,4.1541909,2936.6,2936.5,0.002]
[1765946568938,0.74889226,2936.6,2936.5,0.002]
[1765946569141,4.6140909,2936.6,2936.5,0.002]
[1765946569965,1.20879226,2936.6,2936.5,0.002]
[1765946571069,4.6140909,2936.6,2936.5,0.002]
[1765946573243,1.20879226,2936.6,2936.5,0.002]
[1765946573439,4.6140909,2936.6,2936.5,0.002]
[1765946573770,1.20879226,2936.6,2936.5,0.002]
[1765946576375,4.6140909,2936.6,2936.5,0.002]
[1765946576969,1.20879226,2936.6,2936.5,0.002]
[1765946577174,0.5215,2936.6,2936.5,0.002]
[1765946583558,3.92679864,2936.6,2936.5,0.002]
[1765946589654,0.5215,2936.6,2936.5,0.002]
[1765946589856,3.95559864,2936.6,2936.5,0.002]
[1765946590954,0.5503,2936.6,2936.5,0.002]
[1765946591253,4.69175927,2936.6,2936.5,0.002]
[1765946609667,4.69175927,2936.6,2935.3,0.002]
[1765946609668,0.46438023,2936.5,2935.3,0.002]
[1765946610019,0.5492,2935.4,2935.3,0.002]
[1765946614895,0.4662,2935.4,2935.3,0.002]
[1765946615499,0.5492,2935.4,2935.3,0.002]
[1765946618722,4.36735989,2935.4,2935.3,0.002]
[1765946620298,0.96066915,2935.4,2935.3,0.002]
[1765946623619,4.36735989,2935.4,2935.3,0.002]
[1765946623828,9.14777718,2935.4,2935.3,0.002]
[1765946624116,0.4718,2935.1,2935.0,0.002]
[1765946624484,5.25221729,2935.1,2935.0,0.002]
[1765946625024,3.87883894,2935.1,2935.0,0.002]
[1765946627090,0.0008,2935.1,2935.0,0.002]
[1765946627623,3.87883894,2935.1,2935.0,0.002]
[1765946627809,4.60740473,2935.1,2935.0,0.002]
[1765946628013,1.20036579,2935.1,2935.0,0.002]
[1765946628201,4.60740473,2935.1,2935.0,0.002]
[1765946628624,1.20036579,2935.1,2935.0,0.002]
[1765946628792,4.60740473,2935.1,2935.0,0.002]
[1765946629320,4.13640473,2935.1,2935.0,0.002]
[1765946629688,4.60740473,2935.1,2935.0,0.002]
[1765946637534,9.39326584,2935.1,2935.0,0.002]
[1765946638137,9.93326584,2935.1,2935.0,0.002]
[1765946638340,5.14740473,2935.1,2935.0,0.002]
[1765946641336,0.4679,2934.9,2934.2,3.40807205]
[1765946641539,0.471,2934.7,2934.1,3.41010997]
[1765946641713,0.471,2934.7,2934.2,3.40807921]
[1765946642341,3.40751467,2934.7,2934.2,3.40807921]
[1765946642519,0.471,2934.6,2934.2,3.40807921]
[1765946642722,0.471,2934.6,2934.1,3.95016741]
[1765946644634,5.33536111,2934.2,2934.1,0.542]
[1765946644820,5.33536111,2934.2,2934.1,0.002]
[1765946645312,0.5495,2934.2,2934.1,0.002]
[1765946646324,3.95758397,2934.2,2934.1,0.002]
[1765946647436,8.74344508,2934.2,2934.1,0.002]
[1765946647632,9.95858638,2934.2,2934.1,0.002]
[1765946649233,5.17272527,2934.2,2934.1,0.002]
[1765946651830,5.17272527,2934.2,2933.7,0.002]
[1765946651831,0.4765,2933.8,2933.7,0.002]
[1765946652030,5.26236111,2933.8,2933.7,0.002]
[1765946652247,6.27458333,2933.8,2933.7,0.002]
[1765946652648,9.68313196,2933.8,2933.7,0.002]
[1765946653177,4.89727085,2933.8,2933.7,0.002]
[1765946653588,1.01352222,2933.8,2933.7,0.002]
[1765946653890,0.5492,2934.5,2933.8,0.4779]
[1765946654072,0.46438023,2934.7,2933.9,0.4881307]
[1765946654255,0.4752,2934.6,2933.9,0.4881307]
[1765946654581,0.4752,2934.6,2933.7,0.8956347]
[1765946654880,5.25024134,2934.7,2933.7,0.8956347]
[1765946654881,0.4752,2934.4,2933.8,0.4779]
[1765946655084,0.4752,2934.6,2933.8,0.4779]
[1765946655484,0.4752,2934.5,2933.8,0.4779]
[1765946655687,0.4752,2934.5,2933.8,0.97539302]
[1765946656383,0.4752,2934.5,2933.9,0.4779]
[1765946656757,3.88302733,2934.5,2933.9,0.4779]
[1765946657281,7.29085466,2934.5,2933.9,0.4779]
[1765946657584,3.88302733,2934.5,2933.9,0.4779]
[1765946657788,7.29085466,2934.5,2933.9,0.4779]
[1765946658172,3.88302733,2934.5,2933.9,3.88631166]
[1765946658365,3.88302733,2934.5,2933.9,0.4779]
[1765946659484,7.29085466,2934.5,2933.9,0.4779]
[1765946659654,3.88302733,2934.5,2933.9,0.4779]
[1765946659850,3.88302733,2934.5,2933.9,3.88630059]
[1765946660086,3.40782733,2934.5,2934.2,0.4779]
[1765946660586,11.60151577,2934.5,2933.8,1.02632603]
[1765946660896,0.0741,2933.9,2933.8,0.002]
[1765946661389,3.88338488,2934.2,2933.8,0.002]
[1765946661857,0.0741,2933.9,2933.8,0.002]
[1765946662889,3.48253246,2933.9,2933.8,0.002]
[1765946663094,0.0741,2933.9,2933.8,0.002]
[1765946663456,3.95373246,2933.9,2933.8,0.002]
[1765946663675,4.68993748,2933.9,2933.8,0.002]
[1765946664388,0.0741,2933.9,2933.8,0.002]
[1765946664550,3.87931627,2934.2,2933.8,0.002]
[1765946664551,3.40820012,2934.1,2933.8,0.002]
[1765946664757,0.078,2933.9,2933.8,0.002]
[1765946665074,3.48643246,2933.9,2933.8,0.002]
[1765946665274,0.078,2933.9,2933.8,0.002]
[1765946666083,5.32586111,2934.4,2933.8,0.002]
[1765946666084,3.40805321,2934.3,2933.8,0.9705]
[1765946666295,6.81610642,2934.3,2933.8,0.4926]
[1765946666456,0.4752,2934.2,2933.8,0.4926]
[1765946666658,0.0741,2933.9,2933.8,0.002]
[1765946667395,0.4752,2934.5,2933.8,0.4799]
[1765946667597,0.46438023,2934.7,2933.9,0.4881307]
[1765946667818,0.93958023,2934.7,2933.9,0.4881307]
[1765946667984,0.4979,2934.0,2933.9,0.0102307]
[1765946668185,0.4979,2934.0,2933.8,0.002]
[1765946668186,0.4935,2933.9,2933.8,0.002]
[1765946668494,0.0516,2934.3,2933.8,0.002]
[1765946668495,0.0516,2934.3,2933.8,0.542]
[1765946668715,0.48374611,2934.3,2933.9,0.4779]
[1765946669014,0.4752,2934.5,2933.9,0.4779]
[1765946669599,3.40785169,2934.4,2933.8,0.542]
[1765946669896,3.88305169,2934.4,2933.8,0.542]
[1765946670097,7.29090338,2934.4,2933.8,0.002]
[1765946670808,7.29090338,2934.4,2933.8,0.4799]
[1765946671280,3.88305169,2934.4,2933.8,0.4799]
[1765946671803,6.81523886,2934.6,2933.8,0.4799]
[1765946672009,1.25716191,2934.5,2933.8,0.4799]
[1765946672304,0.4752,2934.4,2933.8,0.4799]
[1765946673180,0.5453,2933.9,2933.8,0.002]
[1765946673601,0.0741,2933.9,2933.8,0.002]
[1765946674312,0.5453,2933.9,2933.8,0.002]
[1765946674510,3.95373246,2933.9,2933.8,0.002]
[1765946674816,4.34910571,2933.9,2933.8,0.002]
[1765946676084,9.13649958,2933.9,2933.8,0.002]
[1765946678610,4.34910571,2933.9,2933.8,0.002]
[1765946678914,3.80380571,2933.9,2933.8,0.002]
[1765946679212,3.89013246,2933.9,2933.8,0.002]
[1765946680290,3.95773246,2933.9,2933.8,0.002]
[1765946682119,3.40843246,2933.9,2933.8,0.002]
[1765946682324,3.40808397,2934.2,2933.8,0.002]
[1765946682524,0.059,2933.9,2933.8,0.002]
[1765946685625,3.40838565,2934.0,2933.8,0.002]
[1765946685830,3.40838565,2934.0,2933.9,0.4951]
[1765946686430,3.46738565,2934.0,2933.8,0.002]
[1765946686638,3.40785169,2934.4,2933.9,0.4951]
[1765946686816,3.40785169,2934.4,2934.0,0.4801]
[1765946687014,6.81570338,2934.4,2934.0,0.4801]
[1765946687530,6.81570338,2934.4,2933.8,0.002]
[1765946687704,7.30610338,2934.4,2933.8,0.4821]
[1765946688220,3.89825169,2934.4,2933.8,0.4821]
[1765946688537,0.001,2934.5,2933.9,0.0102307]
[1765946688740,0.001,2934.5,2934.4,0.4951]
[1765946688923,0.001,2934.5,2934.4,0.9752]
[1765946690615,0.001,2934.5,2934.4,0.4951]
[1765946691014,0.001,2934.5,2934.4,4.38305169]
[1765946691211,0.001,2934.5,2934.4,10.0692778]
[1765946691411,0.001,2934.5,2934.4,10.53365803]
[1765946691612,0.001,2934.5,2934.4,10.67017982]
[1765946692431,0.001,2934.5,2934.4,10.68041052]
[1765946693707,0.001,2934.5,2934.4,15.46780439]
[1765946694605,0.001,2934.5,2934.4,26.24530839]
[1765946695633,0.001,2934.5,2934.4,18.73532656]
[1765946695837,0.001,2934.5,2934.4,15.46780439]
[1765946696043,0.001,2934.5,2934.4,16.00780439]
[1765946696339,0.001,2934.5,2934.4,10.68041052]
[1765946696520,0.001,2934.5,2934.4,11.22041052]
[1765946697326,0.001,2934.5,2934.4,6.01728195]
[1765946697533,0.001,2934.5,2934.4,10.67838473]
[1765946697734,0.001,2934.5,2934.4,11.08388873]
[1765946699543,0.001,2934.5,2934.4,11.08046018]
[1765946700215,0.001,2934.5,2934.4,6.29649486]
[1765946700410,0.001,2934.5,2934.4,0.4951]
[1765946700624,0.001,2934.5,2934.4,1.0351]
[1765946701321,0.001,2934.5,2934.4,1.5152]
[1765946701519,0.001,2934.5,2934.4,0.4951]
[1765946701838,0.06,2934.5,2934.4,0.54]
[1765946702234,0.001,2934.5,2934.4,0.54]
[1765946702433,0.001,2934.5,2934.4,1.0351]
[1765946702740,0.0049,2934.3,2934.2,0.54]
[1765946702916,0.001,2934.5,2934.1,0.54]
[1765946703106,0.4817,2934.2,2934.1,0.54]
[1765946704008,0.4817,2934.2,2933.8,3.89059454]
[1765946704246,0.4817,2934.2,2933.8,3.41054608]
[1765946704552,0.0676,2934.4,2933.8,3.41054608]
[1765946704553,0.4525,2934.0,2933.9,0.54]
[1765946704770,0.4525,2934.0,2933.8,3.41049191]
[1765946704981,0.4525,2934.0,2933.9,0.54]
[1765946705351,0.0965,2934.3,2933.9,0.54]
[1765946705752,0.449,2934.0,2933.9,0.54]
[1765946706269,0.001,2934.5,2934.0,0.405504]
[1765946706470,0.4535,2934.5,2934.1,0.4621307]
[1765946706635,0.55,2934.5,2933.9,4.41054252]
[1765946707135,0.4535,2934.5,2934.0,0.4519]
[1765946707335,0.4535,2934.5,2934.4,0.454]
[1765946707336,0.001,2934.5,2934.4,0.454]
[1765946708250,0.001,2934.5,2934.4,0.9059]
[1765946709169,0.001,2934.5,2934.4,0.454]
[1765946710165,0.001,2934.5,2934.4,0.9059]
[1765946710467,0.0885,2934.5,2934.3,0.54]
[1765946710670,0.0046,2934.4,2934.3,0.54]
[1765946713983,0.0046,2934.4,2934.0,3.94826201]
[1765946714187,0.0046,2934.4,2934.1,3.40818687]
[1765946714485,0.0046,2934.4,2934.0,4.40017251]
[1765946714679,0.0046,2934.4,2934.0,0.9919]
[1765946715084,0.0046,2934.4,2934.0,0.54]
[1765946715382,0.0046,2934.4,2934.1,0.4519]
[1765946716165,0.0046,2934.4,2934.1,3.86005862]
[1765946716365,0.0046,2934.4,2934.1,0.4519]
[1765946717761,0.0056,2934.4,2934.0,4.4001626]
[1765946719570,0.0056,2934.4,2934.0,3.9482626]
[1765946719778,0.0056,2934.4,2934.0,4.4001626]
[1765946721591,0.0056,2934.4,2934.1,0.4519]
[1765946722693,0.0056,2934.4,2934.0,4.4001626]
[1765946723191,0.0056,2934.4,2934.0,3.9482626]
[1765946723396,0.001,2934.4,2934.3,0.454]
[1765946726467,0.001,2934.4,2934.3,0.9059]
[1765946726998,0.001,2934.4,2934.1,3.8600525]
[1765946727295,0.001,2934.4,2934.2,0.4519]
[1765946727792,0.001,2934.4,2934.3,0.454]
[1765946729994,0.001,2934.4,2934.3,4.75408247]
[1765946730198,0.001,2934.4,2934.3,5.20389684]
[1765946730495,0.001,2934.4,2934.3,5.34043914]
[1765946731965,0.001,2934.4,2934.3,10.59033423]
[1765946732166,0.001,2934.4,2934.3,10.55625456]
[1765946732367,0.001,2934.4,2934.3,5.7707397]
[1765946732569,0.001,2934.4,2934.3,0.1365423]
[1765946732773,0.4535,2934.4,2934.3,0.1365423]
[1765946732991,0.001,2934.4,2934.1,0.54]
[1765946734099,0.001,2934.4,2934.1,4.40007306]
[1765946734601,0.001,2934.4,2934.3,0.4756]
[1765946734787,0.001,2934.4,2934.1,4.39937306]
[1765946734991,0.001,2934.4,2934.1,0.9912]
[1765946735401,0.001,2934.4,2933.9,3.86981838]
[1765946735604,0.001,2934.4,2934.0,0.54]
[1765946735804,0.001,2934.4,2934.1,0.54]
[1765946736022,0.001,2934.4,2933.9,3.40838768]
[1765946736304,0.001,2934.4,2934.0,3.94824344]
[1765946736479,0.001,2934.4,2934.0,0.9905]
[1765946738093,0.0048,2933.9,2933.8,0.002]
[1765946738300,0.4834,2934.2,2933.8,0.002]
[1765946738809,0.5451,2933.9,2933.8,0.002]
[1765946740312,3.95353246,2933.9,2933.8,0.002]
[1765946740513,4.68971752,2933.9,2933.8,0.002]
[1765946749918,0.4834,2933.8,2933.5,0.002]
[1765946750123,0.5451,2933.1,2932.9,0.002]
[1765946750909,0.2202,2932.8,2932.7,0.002]
[1765946751220,0.7036,2932.8,2932.7,0.002]
[1765946752010,4.57769108,2932.8,2932.7,0.002]
[1765946752205,5.39008554,2932.8,2932.7,0.002]
[1765946752401,1.98037469,2932.8,2932.7,0.002]
[1765946753031,0.7036,2932.8,2932.7,0.002]
[1765946755638,0.5446,2932.8,2932.7,0.002]
[1765946757139,0.159,2933.1,2932.7,0.4525]
[1765946757349,0.4834,2933.9,2932.7,0.4525]
[1765946757642,0.4834,2933.7,2932.7,0.002]
[1765946758440,0.45686864,2933.6,2932.7,0.4627307]
[1765946758737,0.4834,2933.7,2932.7,0.4627307]
[1765946759526,0.4834,2933.7,2933.0,6.22680984]
[1765946760535,0.5451,2933.1,2933.0,6.22680984]
[1765946760909,0.0048,2932.8,2932.7,0.542]
[1765946761107,0.0048,2932.8,2932.7,6.76880984]
[1765946761738,0.0701,2932.8,2932.7,6.76880984]
[1765946761944,0.5452,2932.8,2932.7,0.002]
[1765946762638,0.0701,2932.8,2932.7,0.002]
[1765946762807,0.5452,2932.8,2932.7,0.002]
[1765946764749,0.0701,2932.8,2932.7,0.002]
[1765946766055,0.5452,2932.8,2932.7,0.002]
[1765946768952,0.159,2933.2,2932.7,0.002]
[1765946769154,0.0542,2933.1,2933.0,6.22680984]
[1765946769457,0.4963,2933.9,2933.1,0.6542]
[1765946769624,0.0542,2933.6,2933.5,6.22680984]
[1765946770147,0.001,2933.9,2933.5,6.22680984]
[1765946770348,0.4806,2933.6,2933.5,6.22680984]
[1765946770547,0.5493,2933.6,2933.5,6.22680984]
[1765946771348,0.4765,2933.4,2933.3,6.22680984]
[1765946771654,0.4765,2933.4,2933.0,6.76680984]
[1765946772428,0.4765,2933.4,2933.0,10.17626115]
[1765946772623,0.4765,2933.4,2933.0,11.58198943]
[1765946772855,0.4765,2933.4,2933.0,12.04318943]
[1765946773456,0.4765,2933.4,2933.1,0.4612]
[1765946773663,0.4963,2933.9,2933.3,6.22680984]
[1765946774155,0.4963,2933.9,2933.2,6.22680984]
[1765946775878,0.0542,2933.3,2933.2,6.22680984]
[1765946776670,0.4953,2933.5,2933.0,7.21920984]
[1765946777031,0.4953,2933.5,2933.0,10.62868455]
[1765946777870,0.4953,2933.5,2933.0,11.5802905]
[1765946778178,0.4953,2933.8,2933.0,11.5802905]
[1765946778332,0.001,2933.9,2933.0,10.63745113]
[1765946778536,0.0542,2933.4,2933.3,6.22680984]